fUST/lending_fUST_20250921
["ID","MTS","AMOUNT","RATE_DAILY","PERIOD"]
[386613644,1758429032848,-307.14,0.00019646,2]
[386613645,1758429032857,-480.0,0.00019646,2]
[386613647,1758429032866,-480.0,0.00019646,2]
[386613649,1758429032875,-480.0,0.00019646,2]
[386613652,1758429032885,-402.99402975,0.00019646,2]
[386613728,1758429038752,-77.00597025,0.00019646,2]
[386613730,1758429038763,-569.77,0.00019646,2]
[386613732,1758429038772,-119.70848938,0.00019647,2]
[386613734,1758429038784,-362.66573791,0.00019647,2]
[386613736,1758429038793,-364.30697463,0.00019647,2]
[386613738,1758429038802,-574.42049014,0.00019647,2]
[386613740,1758429038812,-480.0,0.00019647,2]
[386613742,1758429038821,-480.0,0.00019647,2]
[386613744,1758429038831,-480.0,0.00019647,2]
[386613746,1758429038840,-480.0,0.00019647,2]
[386613748,1758429038850,-798.81,0.00019647,2]
[386613750,1758429038859,-480.0,0.00019647,2]
[386613752,1758429038869,-664.02,0.00019647,2]
[386613754,1758429038879,-480.0,0.00019647,2]
[386613756,1758429038888,-482.87377402,0.00019647,2]
[386613758,1758429038897,-480.0,0.00019647,2]
[386613760,1758429038907,-480.0,0.00019647,2]
[386613762,1758429038916,-480.0,0.00019648,2]
[386613764,1758429038926,-480.0,0.00019648,2]
[386613766,1758429038935,-480.0,0.00019648,2]
[386613768,1758429038944,-480.0,0.00019648,2]
[386613770,1758429038954,-480.0,0.00019648,2]
[386613772,1758429038964,-1850.23,0.00019648,2]
[386613774,1758429038973,-192.588,0.00019649,2]
[386613776,1758429038982,-599.93,0.0001968,2]
[386613778,1758429038992,-482.67513716,0.0001968,2]
[386613780,1758429039001,-320.87853359,0.0001968,2]
[386613782,1758429039011,-488.3056264,0.0001968,2]
[386613784,1758429039020,-2990.7813519,0.00019681,2]
[386613786,1758429039029,-177.3689208,0.00019681,2]
[386613788,1758429039038,-480.0,0.00019747,2]
[386613790,1758429039048,-1000.0,0.00019888,2]
[386613792,1758429039057,-1000.0,0.00019888,2]
[386613794,1758429039066,-1044.82418463,0.00019888,2]
[386613796,1758429039075,-500.0,0.00019888,2]
[386613798,1758429039084,-151.0,0.00019888,2]
[386613800,1758429039094,-151.0,0.00019888,2]
[386613802,1758429039103,-13230.61605696,0.000199,2]
[386613804,1758429039113,-480.0,0.0001992,2]
[386613806,1758429039122,-488.68,0.0001992,2]
[386613808,1758429039131,-480.0,0.0001992,2]
[386613810,1758429039141,-480.0,0.0001992,2]
[386613812,1758429039150,-480.0,0.0001992,2]
[386613814,1758429039160,-569.77,0.0001992,2]
[386613816,1758429039170,-480.0,0.00019921,2]
[386613818,1758429039179,-480.0,0.00019921,2]
[386613820,1758429039189,-480.0,0.00019921,2]
[386613822,1758429039198,-480.0,0.00019921,2]
[386613824,1758429039208,-798.81,0.00019921,2]
[386613826,1758429039217,-480.0,0.00019921,2]
[386613828,1758429039226,-664.02,0.00019921,2]
[386613830,1758429039236,-480.0,0.00019921,2]
[386613832,1758429039245,-480.0,0.00019921,2]
[386613834,1758429039254,-480.0,0.00019922,2]
[386613836,1758429039263,-480.0,0.00019922,2]
[386613838,1758429039273,-480.0,0.00019922,2]
[386613840,1758429039282,-480.0,0.00019922,2]
[386613842,1758429039291,-1850.23,0.00019922,2]
[386613844,1758429039301,-599.93,0.00019954,2]
[386613846,1758429039310,-160.0,0.0002,2]
[386613848,1758429039319,-873.27,0.0002002,2]
[386613850,1758429039328,-480.0,0.0002002,2]
[386613852,1758429039338,-4137.65,0.0002002,2]
[386613854,1758429039347,-480.0,0.0002002,2]
[386613856,1758429039356,-480.0,0.0002002,2]
[386613858,1758429039365,-480.0,0.0002002,2]
[386613860,1758429039375,-480.0,0.00020021,2]
[386613862,1758429039384,-168.0,0.00020139,2]
[386613863,1758429039393,-157.202269,0.00020181,2]
[386613866,1758429039403,-480.0,0.00020194,2]
[386613868,1758429039413,-488.68,0.00020194,2]
[386613869,1758429039427,-480.0,0.00020194,2]
[386613872,1758429039437,-480.0,0.00020194,2]
[386613873,1758429039446,-480.0,0.00020194,2]
[386613876,1758429039456,-428.97,0.00020195,2]
[386613877,1758429039466,-480.0,0.00020195,2]
[386613879,1758429039475,-480.0,0.00020195,2]
[386613882,1758429039485,-480.0,0.00020195,2]
[386613883,1758429039495,-798.81,0.00020195,2]
[386613886,1758429039506,-480.0,0.00020195,2]
[386613888,1758429039516,-664.02,0.00020195,2]
[386613889,1758429039526,-480.0,0.00020195,2]
[386613891,1758429039535,-480.0,0.00020195,2]
[386613893,1758429039544,-923.60829227,0.00020196,2]
[386613895,1758429039554,-480.0,0.00020196,2]
[386613897,1758429039563,-480.0,0.00020196,2]
[386613899,1758429039573,-480.0,0.00020196,2]
[386613901,1758429039582,-480.0,0.00020196,2]
[386613903,1758429039592,-1850.23,0.00020196,2]
[386613905,1758429039601,-674.13472837,0.00020197,2]
[386613907,1758429039611,-1497.69300456,0.00020197,2]
[386613910,1758429039621,-2693.84237455,0.00020197,2]
[386613911,1758429039630,-2158.0,0.00020208,2]
[386613913,1758429039639,-634.0,0.00020208,2]
[386613916,1758429039648,-471.967,0.00020208,2]
[386613918,1758429039658,-416.541,0.00020208,2]
[386613920,1758429039667,-599.93,0.00020228,2]
[386613921,1758429039676,-873.27,0.00020294,2]
[386613923,1758429039685,-4137.65,0.00020294,2]
[386613925,1758429039694,-480.0,0.00020294,2]
[386613928,1758429039704,-480.0,0.00020294,2]
[386613929,1758429039712,-480.0,0.00020294,2]
[386613931,1758429039721,-480.0,0.00020295,2]
[386613934,1758429039731,-162.0715699,0.00020303,2]
[386613935,1758429039740,-165.108094,0.00020303,2]
[386613938,1758429039749,-2809.29,0.00020344,2]
[386613940,1758429039758,-160.0,0.00020369,3]
[386613941,1758429039767,-480.0,0.00020468,2]
[386613943,1758429039777,-488.68,0.00020468,2]
[386613946,1758429039787,-480.0,0.00020468,2]
[386613947,1758429039796,-480.0,0.00020468,2]
[386613950,1758429039806,-480.0,0.00020468,2]
[386613952,1758429039815,-480.0,0.00020469,2]
[386613954,1758429039824,-480.0,0.00020469,2]
[386613956,1758429039834,-480.0,0.00020469,2]
[386613957,1758429039845,-798.81,0.00020469,2]
[386613959,1758429039855,-118.07717334,0.00020469,2]
[386614355,1758429043770,-1321.24859506,0.00019516,2]
[386614359,1758429043781,-11438.7728355,0.00019516,2]
[386614365,1758429043826,-178.80514784,0.00019516,2]
[386614367,1758429043835,-484.64484688,0.0001968,2]
[386614369,1758429043845,-237.85636148,0.00020194,2]
[386614590,1758429047058,-331.91363852,0.00020194,2]
[386614592,1758429047067,-569.77,0.00020468,2]
[386614594,1758429047078,-361.92282666,0.00020469,2]
[386614596,1758429047087,-664.02,0.00020469,2]
[386614598,1758429047097,-480.0,0.00020469,2]
[386614600,1758429047106,-480.0,0.00020469,2]
[386614602,1758429047115,-480.0,0.0002047,2]
[386614604,1758429047124,-480.0,0.0002047,2]
[386614606,1758429047134,-480.0,0.0002047,2]
[386614608,1758429047144,-480.0,0.0002047,2]
[386614610,1758429047153,-225.43594415,0.0002047,2]
[386614613,1758429047165,-1624.79405585,0.0002047,2]
[386614615,1758429047174,-599.93,0.00020502,2]
[386614616,1758429047184,-171.41766473,0.00020523,2]
[386614618,1758429047194,-151.0,0.00020523,2]
[386614621,1758429047204,-151.0,0.00020523,2]
[386614622,1758429047213,-198.70066836,0.00020523,2]
[386614624,1758429047222,-151.95306677,0.00020523,2]
[386614626,1758429047234,-500.0,0.00020523,2]
[386614628,1758429047243,-734.90454433,0.00020568,2]
[386614631,1758429047255,-138.36545567,0.00020568,2]
[386614633,1758429047264,-996.59454423,0.00020568,2]
[386614635,1758429047276,-754.21773,0.00020568,2]
[386615070,1758429340671,-158.557979,0.00018681,2]
[386615071,1758429340700,-1351.01,0.00019436,2]
[386615072,1758429340728,-640.43360025,0.000195,2]
[386615073,1758429340762,-480.0,0.00019639,2]
[386615074,1758429340791,-480.0,0.00019639,2]
[386615075,1758429340821,-480.0,0.00019639,2]
[386615076,1758429340851,-480.0,0.00019639,2]
[386615077,1758429340879,-300.0,0.00019645,2]
[386615078,1758429340907,-536.62,0.00019645,2]
[386615079,1758429344293,-481.32854016,0.00019645,2]
[386615080,1758429344326,-665.67,0.00019646,2]
[386615081,1758429344357,-480.0,0.00019646,2]
[386615082,1758429344389,-553.35,0.00019646,2]
[386615083,1758429344419,-480.0,0.00019646,2]
[386615084,1758429344448,-480.0,0.00019646,2]
[386615085,1758429344479,-480.0,0.00019646,2]
[386615086,1758429344510,-480.0,0.00019646,2]
[386615087,1758429344539,-510.07896304,0.00019646,2]
[386615088,1758429344569,-229.1149936,0.00019646,2]
[386615104,1758429455683,-1333.82,0.00019448,2]
[386615105,1758429455713,-400.86239142,0.00019639,2]
[386615106,1758429455743,-480.0,0.00019639,2]
[386615107,1758429455771,-300.0,0.00019645,2]
[386615108,1758429455804,-320.9250064,0.00019646,2]
[386615109,1758429455843,-480.0,0.00019646,2]
[386615110,1758429455876,-480.0,0.00019646,2]
[386615111,1758429455914,-480.0,0.00019646,2]
[386615112,1758429455952,-574.48,0.00019646,2]
[386615113,1758429551882,1800.98,0.00018,2]
[386615115,1758429639227,-1316.84,0.00019617,2]
[386615116,1758429639256,-480.0,0.00019639,2]
[386615117,1758429639285,-480.0,0.00019639,2]
[386615118,1758429639314,-480.0,0.00019639,2]
[386615119,1758429639347,-480.0,0.00019639,2]
[386615120,1758429639374,-499.5856215,0.00019645,2]
[386615121,1758429639402,-480.0,0.00019645,2]
[386615122,1758429639430,-482.23095581,0.00019645,2]
[386615123,1758429639458,-300.0,0.00019645,2]
[386615124,1758429674428,-158.75483922,0.00018762,2]
[386615125,1758429678652,-175.973593,0.00018762,2]
[386615126,1758429681222,-222.55510571,0.00018762,2]
[386615127,1758429681291,-7308.77236785,0.00018762,2]
[386615128,1758429681446,-10000.01,0.00018762,2]
[386615129,1758429681576,-10000.01,0.00018762,2]
[386615130,1758429681783,-10000.01,0.00018762,2]
[386615131,1758429682018,-10000.01,0.00018762,2]
[386615132,1758429682386,-10000.01,0.00018762,2]
[386615133,1758429682639,-10000.01,0.00018762,2]
[386615134,1758429685374,-203.06865084,0.00018762,2]
[386615135,1758429686902,-152.22659262,0.00018762,2]
[386615136,1758429690557,-211.56251193,0.00018762,2]
[386615137,1758429691112,-3040.14816017,0.00018762,2]
[386615138,1758429691138,-3919.71367966,0.00018762,2]
[386615139,1758429756839,-208.54439238,0.000188,2]
[386615140,1758429759452,-291.45560762,0.000188,2]
[386615141,1758429790137,-152.0,0.000188,2]
[386615142,1758429791564,-156.68162977,0.000188,2]
[386615143,1758429794876,-191.31837023,0.000188,2]
[386615144,1758429794900,-102.72535286,0.000188,2]
[386615145,1758429799403,-228.85114919,0.000188,2]
[386615146,1758429803189,-168.42349795,0.000188,2]
[386615147,1758429803212,-71.21877579,0.000188,2]
[386615148,1758429805662,-307.8251543,0.000188,2]
[386615149,1758429808728,-120.95606991,0.000188,2]
[386615150,1758429808758,-64.09425922,0.000188,2]
[386615151,1758429810756,-246.45084987,0.000188,2]
[386615152,1758429814818,-152.0,0.000188,2]
[386615153,1758429817252,-187.70908885,0.00018727,2]
[386615154,1758429819300,-160.0,0.00018727,2]
[386615155,1758429821361,-261.26,0.00018727,2]
[386615156,1758429823308,-199.76828179,0.00018727,2]
[386615157,1758429825263,-177.87262455,0.00018727,2]
[386615159,1758429827472,-49.65470131,0.00018727,2]
[386615160,1758429827507,-168.15353302,0.000188,2]
[386615161,1758429829864,-191.01867633,0.000188,2]
[386615162,1758429831361,-212.80545591,0.000188,2]
[386615163,1758429833775,-169.45878191,0.000188,2]
[386615164,1758429835761,-152.0,0.000188,2]
[386615165,1758429837906,-413.54334412,0.000188,2]
[386615166,1758429839399,-168.0,0.000188,2]
[386615167,1758429844093,-207.44447851,0.00018799,2]
[386615168,1758429845696,-92.55552149,0.00018799,2]
[386615169,1758429845719,-112.99243732,0.000188,2]
[386615171,1758429927040,-152.69957321,0.00018668,2]
[386615173,1758429950484,-152.0,0.00018627,2]
[386615175,1758429952745,-361.30042679,0.00018627,2]
[386615176,1758429957963,-152.69957321,0.00018627,2]
[386615177,1758429957985,-37.2173088,0.00018668,2]
[386615178,1758429959554,-14.73882369,0.00018668,2]
[386615183,1758429978632,-157.91085406,0.00018573,2]
[386615184,1758429981349,-182.90517399,0.00018573,2]
[386615185,1758429984913,-228.93714123,0.00018573,2]
[386615186,1758429988633,-199.37744811,0.00018573,2]
[386615187,1758429995380,-224.73210151,0.00018573,2]
[386615188,1758429997564,-6.1372811,0.00018573,2]
[386615189,1758430001732,-283.02767156,0.000188,2]
[386615190,1758430001762,-171.68809145,0.000188,2]
[386615191,1758430001791,-380.91731675,0.000189,2]
[386615192,1758430001820,-300.0,0.00019177,2]
[386615193,1758430001853,-500.0,0.00019177,2]
[386615194,1758430001884,-500.0,0.00019177,2]
[386615195,1758430001915,-500.0,0.00019177,2]
[386615196,1758430001944,-224.71682752,0.00019177,2]
[386615197,1758430001972,-276.36178656,0.00019177,2]
[386615198,1758430002002,-357.29694291,0.00019177,2]
[386615199,1758430002034,-500.0,0.00019177,2]
[386615200,1758430002065,-500.0,0.00019177,2]
[386615201,1758430002100,-500.0,0.00019177,2]
[386615202,1758430010855,11.9927265,0.00019177,2]
[386615203,1758430049138,-277.95583562,0.00019177,2]
[386615204,1758430080192,-223.52527079,0.00018641,2]
[386615205,1758430081868,-223.53527079,0.00018641,2]
[386615206,1758430081899,-9540.94673192,0.00018641,2]
[386615207,1758430082547,-11.9927265,0.00018641,2]
[386615208,1758430154090,-7929.80360764,0.00019177,2]
[386615209,1758430154112,-1200.0,0.00019177,2]
[386615210,1758430154134,-300.0,0.00019177,2]
[386615211,1758430154158,-407.35308902,0.00019177,2]
[386615212,1758430154179,-1797.68510988,0.00019178,2]
[386615213,1758430211452,-165.81623418,0.00018715,2]
[386615214,1758430213510,-31.70530982,0.00018715,2]
[386615219,1758430231996,-443.97209553,0.00019178,2]
[386615220,1758430232005,-1392.88,0.00019406,2]
[386615221,1758430232015,-300.0,0.00019644,2]
[386615222,1758430232024,-300.0,0.00019644,2]
[386615223,1758430232033,-300.0,0.00019644,2]
[386615224,1758430232042,-300.0,0.00019644,2]
[386615225,1758430232052,-480.0,0.00019645,2]
[386615226,1758430232061,-344.53559864,0.00019645,2]
[386615302,1758430237754,-135.46440136,0.00019645,2]
[386615303,1758430237765,-480.0,0.00019645,2]
[386615304,1758430237774,-480.0,0.00019645,2]
[386615305,1758430237786,-480.0,0.00019645,2]
[386615306,1758430237796,-480.0,0.00019645,2]
[386615307,1758430237808,-480.0,0.00019645,2]
[386615308,1758430237819,-585.46385687,0.00019645,2]
[386615309,1758430237830,-480.0,0.00019645,2]
[386615310,1758430237839,-39.07179177,0.00019646,2]
[386615311,1758430237853,-447.26604393,0.00019646,2]
[386615312,1758430237864,-503.67993404,0.00019646,2]
[386615313,1758430237874,-480.0,0.00019646,2]
[386615314,1758430237885,-297.37890636,0.00019646,2]
[386615315,1758430237895,-159.11079194,0.00019646,2]
[386615316,1758430237907,-320.88920806,0.00019646,2]
[386615317,1758430237915,-268.81620173,0.00019646,2]
[386615318,1758430237924,-5.12103259,0.00019647,2]
[386615319,1758430237935,-481.17487464,0.00019647,2]
[386615320,1758430237945,-824.05,0.00019647,2]
[386615321,1758430237957,-1833.7,0.00019647,2]
[386615322,1758430237967,-480.0,0.00019647,2]
[386615323,1758430237977,-3964.32,0.00019647,2]
[386615324,1758430237986,-487.13,0.00019679,2]
[386615325,1758430237996,-480.0,0.00019679,2]
[386615326,1758430238006,-480.0,0.00019679,2]
[386615327,1758430238016,-480.0,0.00019679,2]
[386615328,1758430238025,-480.0,0.00019679,2]
[386615329,1758430238034,-480.0,0.00019679,2]
[386615330,1758430238043,-480.0,0.00019679,2]
[386615331,1758430238053,-412.81848424,0.00019679,2]
[386615342,1758430240317,-95.66391651,0.00019679,2]
[386615343,1758430240326,-113.54198432,0.00019679,2]
[386615356,1758430303117,349.9,0.00018,2]
[386615357,1758430391109,-274.340886,0.00018749,2]
[386615358,1758430395568,-154.13088673,0.00018749,2]
[386615359,1758430401365,-196.14059937,0.00018749,2]
[386615360,1758430403366,-187.9485139,0.00018749,2]
[386615361,1758430571535,-401.84476962,0.00018709,2]
[386615362,1758430574841,-239.12924068,0.00018709,2]
[386615363,1758430578921,-163.56129368,0.00018709,2]
[386615367,1758430630952,-297.07728195,0.0001868,2]
[386615369,1758430638399,-404.35823673,0.0001868,2]
[386615370,1758430640964,-283.47384742,0.0001868,2]
[386615392,1758430802889,-193.99612365,0.00018454,2]
[386615393,1758430804143,191.01867633,0.0001794,2]
[386615394,1758430805909,-271.19069471,0.00018454,2]
[386615395,1758430807496,-160.0,0.00018454,2]
[386615396,1758430811750,-166.00658496,0.00018454,2]
[386615397,1758430813720,-187.64448774,0.00018428,2]
[386615398,1758430822430,-295.615232,0.00018428,2]
[386615399,1758430826008,-215.08724986,0.00018428,2]
[386615400,1758430828973,-244.91601342,0.00018428,2]
[386615401,1758430834611,-152.0,0.00018428,2]
[386615402,1758430837119,-236.6671919,0.00018428,2]
[386615403,1758430839257,-174.25551148,0.00018428,2]
[386615404,1758430839423,-104.12667017,0.00018454,2]
[386615405,1758430844987,-285.09402865,0.00018454,2]
[386615406,1758430848413,-295.68070266,0.00018454,2]
[386615409,1758431154824,-250.0,0.00018033,2]
[386615410,1758431154849,-25.37954375,0.00018271,2]
[386615411,1758431159468,-155.63315733,0.00018271,2]
[386615412,1758431168548,-173.02941,0.00018271,2]
[386615413,1758431176425,-311.95788892,0.00018271,2]
[386615414,1758431176456,-15.99624779,0.0001834,2]
[386615415,1758431182185,-161.86580021,0.0001834,2]
[386615416,1758431182209,-27.78612473,0.00018436,2]
[386615417,1758431184861,-160.0,0.00018427,2]
[386615418,1758431184903,-36.39482454,0.00018436,2]
[386615419,1758431189109,-156.03400253,0.00018436,2]
[386615420,1758431217137,-162.4569937,0.00018528,2]
[386615421,1758431220704,-306.46508034,0.00018528,2]
[386615422,1758431223911,-170.08367808,0.00018528,2]
[386615423,1758431226317,-209.23258736,0.00018528,2]
[386615424,1758431229666,-164.92258107,0.00018528,2]
[386615425,1758431231798,-294.41999492,0.00018528,2]
[386615426,1758431233843,-174.48381324,0.00018528,2]
[386615427,1758431239030,-184.31940916,0.00018528,2]
[386615428,1758431242935,-354.23,0.00018528,2]
[386615429,1758431244935,-192.6122572,0.00018528,2]
[386615430,1758431246959,-207.9543967,0.00018528,2]
[386615431,1758431247096,-241.49675959,0.00018528,2]
[386615432,1758431249021,-179.51983585,0.00018528,2]
[386615433,1758431252426,-698.59829889,0.00018528,2]
[386615434,1758431255994,-126.6806918,0.00018528,2]
[386615435,1758431326417,-300.07270037,0.00018551,2]
[386615436,1758431329376,-183.35236356,0.00018551,2]
[386615437,1758431333578,-304.53629207,0.00018551,2]
[386615438,1758431355095,-1000.0,0.00018551,2]
[386615439,1758431355115,-402.6905343,0.00018617,2]
[386615440,1758431355135,-174.65842,0.00018675,2]
[386615441,1758431355155,-320.07944662,0.00018709,2]
[386615442,1758431355175,-218.10589533,0.00019057,2]
[386615443,1758431355195,-510.327,0.00019178,2]
[386615444,1758431355215,-162.0715699,0.000192,2]
[386615445,1758431355234,-162.0715699,0.000192,2]
[386615446,1758431355255,-22.38456395,0.000192,2]
[386615447,1758431360088,-306.25084253,0.00018711,2]
[386615483,1758431432253,-170.29791587,0.00018711,2]
[386615484,1758431432263,-266.63448615,0.000192,2]
[386615485,1758431432273,-388.3486982,0.00019633,2]
[386615488,1758431438075,-997.44947834,0.0001954,2]
[386615489,1758431438087,-393.04281597,0.0001954,2]
[386615502,1758431440192,-23.57770569,0.0001954,2]
[386615503,1758431440220,-811.6513018,0.00019633,2]
[386615504,1758431440246,-191.0,0.00019633,2]
[386615505,1758431440272,-300.0,0.00019633,2]
[386615506,1758431440296,-300.0,0.00019633,2]
[386615507,1758431440321,-173.0,0.00019633,2]
[386615508,1758431440340,-151.0,0.00019634,2]
[386615509,1758431440349,-157.78566934,0.00019634,2]
[386615510,1758431440358,-250.0,0.00019634,2]
[386615511,1758431440367,-57.95654538,0.00019634,2]
[386615512,1758431440798,-440.78207571,0.00019634,2]
[386615521,1758431443145,-0.00373906,0.00019634,2]
[386615532,1758431475765,-258.77333068,0.0001852,2]
[386615533,1758431478242,-152.0,0.0001852,2]
[386615534,1758431480932,-211.32071571,0.0001852,2]
[386615535,1758431484234,-160.17430248,0.0001852,2]
[386615536,1758431486761,-449.3278534,0.0001852,2]
[386615537,1758431489263,-251.61643831,0.0001852,2]
[386615538,1758431492768,-116.78735942,0.0001852,2]
[386615539,1758431499095,-294.4199949,0.00018703,2]
[386615540,1758431499132,-3673.9480106,0.00018756,2]
[386615541,1758431499252,-1522.35531267,0.00018962,2]
[386615542,1758431514103,-10000.01,0.00018962,2]
[386615548,1758431886790,750.0,0.00027,120]
[386615549,1758432009998,-164.9225811,0.00018626,2]
[386615550,1758432010028,-701.4355187,0.00018639,2]
[386615551,1758432010056,-160.0,0.0001896,2]
[386615552,1758432010086,-1200.0,0.00018961,2]
[386615553,1758432010117,-300.0,0.00018961,2]
[386615554,1758432010147,-431.0,0.00018961,2]
[386615555,1758432010284,-4085.2938004,0.00018962,2]
[386615557,1758432285425,-3616.851217,0.00018606,2]
[386615558,1758432285456,-179.222388,0.00018631,2]
[386615559,1758432285508,-2407.86279,0.00018962,2]
[386615560,1758432285703,-2313.88567923,0.00018962,2]
[386615561,1758432285738,-5372.23864154,0.00019,2]
[386615562,1758432285828,-10000.01,0.00019,2]
[386615563,1758432285966,-10000.01,0.00019,2]
[386615564,1758432286069,-10000.01,0.00019,2]
[386615565,1758432286183,-10000.01,0.00019,2]
[386615566,1758432286296,-10000.01,0.00019,2]
[386615567,1758432286647,-10000.01,0.00019,2]
[386615568,1758432286762,-10000.01,0.00019,2]
[386615569,1758432286888,-10000.01,0.00019,2]
[386615570,1758432292329,-10000.01,0.00019,2]
[386615571,1758432292458,-10000.01,0.00019,2]
[386615572,1758432292598,-10000.01,0.00019,2]
[386615573,1758432292835,-10000.01,0.00019,2]
[386615574,1758432292864,-10000.01,0.00019,2]
[386615575,1758432292993,-10000.01,0.00019,2]
[386615576,1758432293104,-10000.01,0.00019,2]
[386615577,1758432293199,-10000.01,0.00019,2]
[386615578,1758432293338,-3252.68525282,0.00019,2]
[386615579,1758432293362,-3494.63949436,0.00019,2]
[386615581,1758432334310,-178.821823,0.00019177,2]
[386615586,1758432383576,-157.80113774,0.00018532,2]
[386615587,1758432387253,-228.35907675,0.00018532,2]
[386615588,1758432390201,-242.16749244,0.00018532,2]
[386615589,1758432394314,-245.35200011,0.00018532,2]
[386615590,1758432398149,-289.77,0.00018532,2]
[386615591,1758432400636,-229.35826634,0.00018532,2]
[386615592,1758432403709,-99.29173862,0.00018532,2]
[386615597,1758432448130,-790.4107501,0.00018613,2]
[386615598,1758432449086,-190.1669786,0.00018613,2]
[386615600,1758432469944,-248.47899204,0.00018557,2]
[386615601,1758432470146,8000.04903581,0.00018,2]
[386615602,1758432472023,-208.05480322,0.00018557,2]
[386615603,1758432474203,522.9611001,0.00018,2]
[386615604,1758432474814,-200.21709368,0.00018557,2]
[386615605,1758432481211,-152.51896123,0.00018557,2]
[386615606,1758432483853,-190.73014983,0.00018557,2]
[386615608,1758432519343,8324.9951402,0.00018,2]
[386615612,1758432535837,-158.7141963,0.00018613,2]
[386615613,1758432536081,-2834.58633129,0.0001899,2]
[386615614,1758432536189,-10000.01,0.0001899,2]
[386615616,1758432545731,-4909.33027865,0.0001899,2]
[386615617,1758432545767,-181.3494427,0.00019063,7]
[386615618,1758432555767,-4304.12411376,0.00019063,7]
[386615619,1758432555792,-1391.76177248,0.00019063,7]
[386615620,1758432573083,-152.47053521,0.00019081,2]
[386615621,1758432573104,-151.67135674,0.00019178,2]
[386615622,1758432573126,-2518.25810805,0.00019178,2]
[386615641,1758432632261,-103.55605414,0.00019178,2]
[386615642,1758432632271,-2154.81583322,0.00019205,5]
[386615643,1758432632280,-2049.78,0.00019425,2]
[386615644,1758432632291,-300.0,0.00019613,2]
[386615646,1758432632300,-451.77664188,0.00019614,2]
[386615648,1758432632310,-500.0,0.00019614,2]
[386615650,1758432632319,-1200.0,0.00019614,2]
[386615652,1758432632328,-353.54992569,0.00019614,2]
[386615654,1758432632338,-500.0,0.00019614,2]
[386615655,1758432632348,-500.0,0.00019614,2]
[386615656,1758432632357,-500.0,0.00019614,2]
[386615657,1758432632366,-464.55197911,0.00019614,2]
[386615658,1758432632376,-500.0,0.00019614,2]
[386615659,1758432632385,-500.0,0.00019614,2]
[386615660,1758432632394,-500.0,0.00019614,2]
[386615661,1758432632403,-500.0,0.00019614,2]
[386615662,1758432632412,-500.0,0.00019614,2]
[386615663,1758432632421,-500.0,0.00019614,2]
[386615664,1758432632431,-500.0,0.00019614,2]
[386615665,1758432632440,-500.0,0.00019614,2]
[386615666,1758432632449,-500.0,0.00019614,2]
[386615667,1758432632458,-500.0,0.00019614,2]
[386615668,1758432632468,-500.0,0.00019614,2]
[386615669,1758432632477,-500.0,0.00019614,2]
[386615671,1758432632486,-500.0,0.00019614,2]
[386615672,1758432632495,-399.71237311,0.00019614,2]
[386615673,1758432632505,-263.24698655,0.00019614,2]
[386615674,1758432632514,-369.20683826,0.00019614,2]
[386615675,1758432632523,-500.0,0.00019614,2]
[386615676,1758432632532,-500.0,0.00019614,2]
[386615677,1758432632544,-500.0,0.00019614,2]
[386615678,1758432632553,-319.86597296,0.00019614,2]
[386615679,1758432632563,-500.0,0.00019614,2]
[386615680,1758432632572,-500.0,0.00019614,2]
[386615681,1758432632582,-216.92673546,0.00019614,2]
[386615682,1758432632591,-500.0,0.00019614,2]
[386615683,1758432632600,-505.86296479,0.00019614,2]